fUST/lending_fUST_20250202
["ID","MTS","AMOUNT","RATE_DAILY","PERIOD"]
[351234876,1738464634482,-500.0,0.00016438,2]
[351234877,1738464634493,-287.55802062,0.00016438,2]
[351234878,1738464634505,-503.36497601,0.00016438,2]
[351234879,1738464634516,-500.0,0.00016438,2]
[351234880,1738464634526,-500.0,0.00016438,2]
[351234881,1738464634640,-504.08294231,0.00016438,2]
[351234882,1738464634650,-500.0,0.00016438,2]
[351234883,1738464634660,-501.50289994,0.00016438,2]
[351234884,1738464634670,-500.0,0.00016438,2]
[351234885,1738464634679,-500.0,0.00016438,2]
[351234886,1738464634689,-504.9203609,0.00016438,2]
[351234887,1738464634698,-500.0,0.00016438,2]
[351234888,1738464634708,-501.43082791,0.00016438,2]
[351234889,1738464634717,-500.0,0.00016438,2]
[351234890,1738464634727,-500.0,0.00016438,2]
[351234891,1738464634737,-500.0,0.00016438,2]
[351234892,1738464634747,-502.76997427,0.00016438,2]
[351234893,1738464634757,-500.0,0.00016438,2]
[351234894,1738464634767,-500.0,0.00016438,2]
[351234895,1738464634776,-500.0,0.00016438,2]
[351234896,1738464634785,-502.92878891,0.00016438,2]
[351234897,1738464634794,-501.63523356,0.00016438,2]
[351234898,1738464634803,-500.894624,0.00016438,2]
[351234899,1738464634813,-503.00844519,0.00016438,2]
[351234900,1738464634823,-500.0,0.00016438,2]
[351234901,1738464634833,-511.39065502,0.00016438,2]
[351234902,1738464634843,-502.98538448,0.00016438,2]
[351234903,1738464634852,-501.6476339,0.00016438,2]
[351234904,1738464634862,-503.05908063,0.00016438,2]
[351234905,1738464634871,-500.0,0.00016438,2]
[351234906,1738464634882,-471.7057793,0.00016438,2]
[351234907,1738464634891,-500.0,0.00016438,2]
[351234908,1738464634900,-500.0,0.00016438,2]
[351234909,1738464634910,-500.0,0.00016438,2]
[351234910,1738464634919,-503.37957667,0.00016438,2]
[351234911,1738464634928,-501.16897794,0.00016438,2]
[351234912,1738464634937,-500.0,0.00016438,2]
[351234913,1738464634946,-500.0,0.00016438,2]
[351234914,1738464634956,-501.57827711,0.00016438,2]
[351234915,1738464634966,-534.8059803,0.00016438,2]
[351234916,1738464634975,-500.0,0.00016438,2]
[351234917,1738464634985,-501.63850848,0.00016438,2]
[351234918,1738464634995,-500.0,0.00016438,2]
[351234919,1738464635007,-500.0,0.00016438,2]
[351234920,1738464635018,-500.9513504,0.00016438,2]
[351234921,1738464635028,-500.0,0.00016438,2]
[351234922,1738464635037,-500.0,0.00016438,2]
[351234923,1738464635046,-500.0,0.00016438,2]
[351234924,1738464635058,-504.12174967,0.00016438,2]
[351234925,1738464635067,-502.10317341,0.00016438,2]
[351234926,1738464635076,-503.08482774,0.00016438,2]
[351234927,1738464635087,-500.0,0.00016438,2]
[351234928,1738464635096,-500.80939487,0.00016438,2]
[351234929,1738464635105,-500.0,0.00016438,2]
[351234930,1738464635115,-501.00174036,0.00016438,2]
[351234931,1738464635124,-500.0,0.00016438,2]
[351234932,1738464635135,-500.58925233,0.00016438,2]
[351234933,1738464635144,-500.0,0.00016438,2]
[351234934,1738464635153,-500.0,0.00016438,2]
[351234935,1738464635163,-500.0,0.00016438,2]
[351234936,1738464635173,-500.0,0.00016438,2]
[351234937,1738464635182,-500.0,0.00016438,2]
[351234938,1738464635192,-251.93336708,0.00016438,2]
[351234939,1738464635201,-504.6177495,0.00016438,2]
[351234940,1738464635211,-500.0,0.00016438,2]
[351234941,1738464635220,-500.0,0.00016438,2]
[351234942,1738464635229,-500.0,0.00016438,2]
[351234943,1738464635238,-500.8412065,0.00016438,2]
[351234944,1738464635247,-500.0,0.00016438,2]
[351234945,1738464635256,-505.68642077,0.00016438,2]
[351234946,1738464635266,-501.11664725,0.00016438,2]
[351234947,1738464635276,-500.0,0.00016438,2]
[351234948,1738464635286,-500.0,0.00016438,2]
[351234949,1738464635296,-500.0,0.00016438,2]
[351234950,1738464635305,-504.23132815,0.00016438,2]
[351234951,1738464635315,-500.0,0.00016438,2]
[351234952,1738464635324,-500.0,0.00016438,2]
[351234953,1738464635334,-245.61041145,0.00016438,2]
[351234954,1738464635344,-500.0,0.00016438,2]
[351234955,1738464635354,-500.82905437,0.00016438,2]
[351234956,1738464635364,-500.0,0.00016438,2]
[351234957,1738464635374,-501.83238126,0.00016438,2]
[351234958,1738464635385,-500.0,0.00016438,2]
[351234959,1738464635394,-500.0,0.00016438,2]
[351234960,1738464635416,-500.0,0.00016438,2]
[351234961,1738464635426,-500.0,0.00016438,2]
[351234962,1738464635437,-441.43515108,0.00016438,2]
[351234963,1738464635447,-500.68233466,0.00016438,2]
[351234964,1738464635458,-502.89493583,0.00016438,2]
[351234965,1738464635468,-500.0,0.00016438,2]
[351234966,1738464635478,-500.45259569,0.00016438,2]
[351234967,1738464635488,-500.0,0.00016438,2]
[351234968,1738464635500,-503.25476532,0.00016438,2]
[351234969,1738464635511,-500.0,0.00016438,2]
[351234970,1738464635521,-502.18787351,0.00016438,2]
[351234971,1738464635530,-500.92619343,0.00016438,2]
[351234972,1738464635540,-500.0,0.00016438,2]
[351234973,1738464635550,-500.0,0.00016438,2]
[351234974,1738464635560,-500.0,0.00016438,2]
[351234975,1738464635571,-500.0,0.00016438,2]
[351234976,1738464635581,-503.88068414,0.00016438,2]
[351234977,1738464635591,-500.41211187,0.00016438,2]
[351234978,1738464635601,-500.0,0.00016438,2]
[351234979,1738464635611,-500.0,0.00016438,2]
[351234980,1738464635622,-503.77707503,0.00016438,2]
[351234981,1738464635634,-193.78129774,0.00016438,2]
[351235010,1738464638506,-308.2155228,0.00016438,2]
[351235012,1738464638516,-501.06361846,0.00016438,2]
[351235014,1738464638525,-500.0,0.00016438,2]
[351235016,1738464638535,-503.43955699,0.00016438,2]
[351235018,1738464638544,-505.19211161,0.00016438,2]
[351235020,1738464638553,-500.78690807,0.00016438,2]
[351235022,1738464638563,-500.0,0.00016438,2]
[351235024,1738464638572,-501.33174425,0.00016438,2]
[351235026,1738464638581,-500.0,0.00016438,2]
[351235028,1738464638590,-500.0,0.00016438,2]
[351235030,1738464638600,-500.53716093,0.00016438,2]
[351235032,1738464638609,-502.18523439,0.00016438,2]
[351235034,1738464638618,-500.90578574,0.00016438,2]
[351235036,1738464638627,-513.78260585,0.00016438,2]
[351235038,1738464638637,-500.62441331,0.00016438,2]
[351235040,1738464638647,-500.0,0.00016438,2]
[351235042,1738464638656,-502.04264711,0.00016438,2]
[351235044,1738464638665,-501.1666821,0.00016438,2]
[351235045,1738464638674,-500.0,0.00016438,2]
[351235046,1738464638683,-500.0,0.00016438,2]
[351235047,1738464638692,-500.0,0.00016438,2]
[351235048,1738464638703,-500.0,0.00016438,2]
[351235049,1738464638712,-504.8676111,0.00016438,2]
[351235050,1738464638721,-500.0,0.00016438,2]
[351235051,1738464638730,-502.05581333,0.00016438,2]
[351235052,1738464638739,-500.0,0.00016438,2]
[351235053,1738464638749,-500.0,0.00016438,2]
[351235054,1738464638759,-500.87720009,0.00016438,2]
[351235055,1738464638769,-500.0,0.00016438,2]
[351235056,1738464638778,-500.0,0.00016438,2]
[351235057,1738464638788,-500.0,0.00016438,2]
[351235058,1738464638797,-504.67594544,0.00016438,2]
[351235059,1738464638806,-502.65415292,0.00016438,2]
[351235060,1738464638816,-500.46494183,0.00016438,2]
[351235061,1738464638825,-500.0,0.00016438,2]
[351235062,1738464638834,-500.0,0.00016438,2]
[351235063,1738464638843,-500.0,0.00016438,2]
[351235064,1738464638851,-500.0,0.00016438,2]
[351235065,1738464638860,-501.50530517,0.00016438,2]
[351235066,1738464638869,-500.0,0.00016438,2]
[351235067,1738464638878,-500.0,0.00016438,2]
[351235068,1738464638890,-500.0,0.00016438,2]
[351235069,1738464638899,-500.0,0.00016438,2]
[351235070,1738464638909,-500.0,0.00016438,2]
[351235071,1738464638919,-500.0,0.00016438,2]
[351235072,1738464638929,-500.0,0.00016438,2]
[351235073,1738464638939,-500.0,0.00016438,2]
[351235074,1738464638949,-500.0,0.00016438,2]
[351235075,1738464638958,-500.0,0.00016438,2]
[351235076,1738464638968,-501.2948225,0.00016438,2]
[351235077,1738464638977,-500.0,0.00016438,2]
[351235078,1738464638987,-453.23839152,0.00016438,2]
[351235079,1738464639000,-46.76160848,0.00016438,2]
[351235080,1738464639011,-510.67071404,0.00016438,2]
[351235081,1738464639021,-243.45687143,0.00016438,2]
[351235082,1738464639444,-256.54312857,0.00016438,2]
[351235083,1738464639454,-502.22217905,0.00016438,2]
[351235084,1738464639463,-500.0,0.00016438,2]
[351235085,1738464639472,-500.0,0.00016438,2]
[351235086,1738464639481,-500.0,0.00016438,2]
[351235087,1738464639490,-500.0,0.00016438,2]
[351235088,1738464639498,-507.13419515,0.00016438,2]
[351235089,1738464639508,-500.0,0.00016438,2]
[351235090,1738464639517,-503.30894403,0.00016438,2]
[351235091,1738464639526,-501.54808729,0.00016438,2]
[351235092,1738464639536,-512.81881228,0.00016438,2]
[351235093,1738464639545,-502.15990221,0.00016438,2]
[351235094,1738464639555,-504.40820129,0.00016438,2]
[351235095,1738464639564,-505.55988272,0.00016438,2]
[351235096,1738464639573,-500.0,0.00016438,2]
[351235097,1738464639590,-624.67298155,0.00016438,2]
[351235098,1738464639598,-500.0,0.00016438,2]
[351235099,1738464639607,-502.9115628,0.00016438,2]
[351235100,1738464639617,-504.21501697,0.00016438,2]
[351235101,1738464639626,-500.0,0.00016438,2]
[351235102,1738464639635,-500.99071525,0.00016438,2]
[351235103,1738464639644,-500.0,0.00016438,2]
[351235104,1738464639653,-500.0,0.00016438,2]
[351235105,1738464639662,-502.35344592,0.00016438,2]
[351235106,1738464639671,-500.0,0.00016438,2]
[351235107,1738464639689,-500.0,0.00016438,2]
[351235108,1738464639699,-500.0,0.00016438,2]
[351235109,1738464639709,-500.0,0.00016438,2]
[351235110,1738464639719,-504.45507927,0.00016438,2]
[351235111,1738464639728,-504.23768936,0.00016438,2]
[351235112,1738464639738,-500.0,0.00016438,2]
[351235113,1738464639748,-500.0,0.00016438,2]
[351235114,1738464639758,-500.0,0.00016438,2]
[351235115,1738464639767,-500.0,0.00016438,2]
[351235116,1738464639777,-500.0,0.00016438,2]
[351235117,1738464639786,-500.0,0.00016438,2]
[351235118,1738464639795,-500.67921638,0.00016438,2]
[351235119,1738464639804,-500.0,0.00016438,2]
[351235120,1738464639813,-500.72573147,0.00016438,2]
[351235121,1738464639823,-501.21147551,0.00016438,2]
[351235122,1738464639833,-502.33078458,0.00016438,2]
[351235123,1738464639842,-500.78971868,0.00016438,2]
[351235124,1738464639851,-502.36073837,0.00016438,2]
[351235125,1738464639861,-505.78187464,0.00016438,2]
[351235126,1738464639870,-501.38363773,0.00016438,2]
[351235127,1738464639879,-500.0,0.00016438,2]
[351235128,1738464639892,-466.19831029,0.00016438,2]
[351235129,1738464639902,-500.0,0.00016438,2]
[351235130,1738464639911,-500.0,0.00016438,2]
[351235131,1738464639920,-502.99163922,0.00016438,2]
[351235132,1738464639929,-500.0,0.00016438,2]
[351235133,1738464639937,-504.92511442,0.00016438,2]
[351235134,1738464639946,-506.16958618,0.00016438,2]
[351235135,1738464639955,-500.0,0.00016438,2]
[351235136,1738464639965,-500.99619456,0.00016438,2]
[351235137,1738464639974,-500.0,0.00016438,2]
[351235138,1738464639984,-500.86609483,0.00016438,2]
[351235139,1738464639993,-503.8575968,0.00016438,2]
[351235140,1738464640002,-501.50248079,0.00016438,2]
[351235141,1738464640013,-500.0,0.00016438,2]
[351235142,1738464640023,-500.79847976,0.00016438,2]
[351235143,1738464640032,-500.0,0.00016438,2]
[351235144,1738464640041,-501.83878558,0.00016438,2]
[351235146,1738464640052,-500.0,0.00016438,2]
[351235148,1738464640061,-500.0,0.00016438,2]
[351235149,1738464640070,-500.0,0.00016438,2]
[351235151,1738464640080,-502.93677663,0.00016438,2]
[351235153,1738464640090,-500.0,0.00016438,2]
[351235154,1738464640099,-500.75548031,0.00016438,2]
[351235155,1738464640109,-500.0,0.00016438,2]
[351235156,1738464640118,-500.0,0.00016438,2]
[351235157,1738464640127,-500.0,0.00016438,2]
[351235158,1738464640139,-500.0,0.00016438,2]
[351235159,1738464640149,-500.0,0.00016438,2]
[351235160,1738464640159,-500.0,0.00016438,2]
[351235161,1738464640168,-500.0,0.00016438,2]
[351235162,1738464640178,-500.0,0.00016438,2]
[351235163,1738464640187,-500.0,0.00016438,2]
[351235164,1738464640196,-500.0,0.00016438,2]
[351235165,1738464640205,-500.0,0.00016438,2]
[351235166,1738464640215,-500.0,0.00016438,2]
[351235167,1738464640224,-500.0,0.00016438,2]
[351235168,1738464640233,-500.0,0.00016438,2]
[351235169,1738464640242,-500.0,0.00016438,2]
[351235170,1738464640251,-498.13222151,0.00016438,2]
[351235171,1738464640261,-500.0,0.00016438,2]
[351235172,1738464640270,-501.70467411,0.00016438,2]
[351235173,1738464640279,-501.92538751,0.00016438,2]
[351235174,1738464640289,-500.0,0.00016438,2]
[351235175,1738464640298,-500.0,0.00016438,2]
[351235176,1738464640308,-500.0,0.00016438,2]
[351235177,1738464640317,-500.0,0.00016438,2]
[351235178,1738464640326,-501.36615242,0.00016438,2]
[351235179,1738464640335,-501.82668888,0.00016438,2]
[351235180,1738464640345,-500.0,0.00016438,2]
[351235181,1738464640354,-500.0,0.00016438,2]
[351235182,1738464640363,-503.95072615,0.00016438,2]
[351235183,1738464640373,-500.98430726,0.00016438,2]
[351235184,1738464640382,-500.0,0.00016438,2]
[351235185,1738464640393,-500.0,0.00016438,2]
[351235186,1738464640402,-501.3838639,0.00016438,2]
[351235187,1738464640412,-500.0,0.00016438,2]
[351235188,1738464640421,-500.0,0.00016438,2]
[351235189,1738464640431,-500.0,0.00016438,2]
[351235190,1738464640440,-501.5146219,0.00016438,2]
[351235191,1738464640449,-1003.58722392,0.00016438,2]
[351235192,1738464640459,-500.98752643,0.00016438,2]
[351235193,1738464640468,-500.0,0.00016438,2]
[351235194,1738464640477,-500.0,0.00016438,2]
[351235195,1738464640487,-510.16134171,0.00016438,2]
[351235196,1738464640497,-503.27663709,0.00016438,2]
[351235197,1738464640507,-503.58348132,0.00016438,2]
[351235198,1738464640516,-500.0,0.00016438,2]
[351235199,1738464640526,-503.88162178,0.00016438,2]
[351235200,1738464640535,-500.0,0.00016438,2]
[351235201,1738464640545,-501.1745909,0.00016438,2]
[351235202,1738464640555,-500.0,0.00016438,2]
[351235203,1738464640566,-500.0,0.00016438,2]
[351235204,1738464640575,-500.0,0.00016438,2]
[351235205,1738464640585,-500.0,0.00016438,2]
[351235206,1738464640594,-501.02880602,0.00016438,2]
[351235207,1738464640605,-500.0,0.00016438,2]
[351235208,1738464640615,-500.0,0.00016438,2]
[351235209,1738464640625,-501.22928611,0.00016438,2]
[351235210,1738464640636,-500.0,0.00016438,2]
[351235211,1738464640645,-501.75561185,0.00016438,2]
[351235212,1738464640655,-510.73195941,0.00016438,2]
[351235213,1738464640665,-500.0,0.00016438,2]
[351235214,1738464640676,-500.0,0.00016438,2]
[351235215,1738464640685,-11181.53,0.00016438,2]
[351235216,1738464640695,-500.0,0.00016438,2]
[351235217,1738464640705,-504.94000362,0.00016438,2]
[351235218,1738464640714,-500.0,0.00016438,2]
[351235219,1738464640724,-506.05523238,0.00016438,2]
[351235220,1738464640734,-500.0,0.00016438,2]
[351235221,1738464640743,-500.0,0.00016438,2]
[351235222,1738464640752,-500.0,0.00016438,2]
[351235223,1738464640762,-502.17822137,0.00016438,2]
[351235224,1738464640771,-500.0,0.00016438,2]
[351235225,1738464640780,-500.0,0.00016438,2]
[351235226,1738464640789,-500.0,0.00016438,2]
[351235227,1738464640800,-504.24112529,0.00016438,2]
[351235228,1738464640809,-502.12572932,0.00016438,2]
[351235229,1738464640818,-500.0,0.00016438,2]
[351235230,1738464640828,-500.0,0.00016438,2]
[351235231,1738464640838,-500.0,0.00016438,2]
[351235232,1738464640847,-500.0,0.00016438,2]
[351235233,1738464640856,-358.4192307,0.00016438,2]
[351235234,1738464640866,-500.0,0.00016438,2]
[351235235,1738464640876,-500.0,0.00016438,2]
[351235236,1738464640888,-502.19461125,0.00016438,2]
[351235237,1738464640897,-500.0,0.00016438,2]
[351235238,1738464640907,-500.0,0.00016438,2]
[351235239,1738464640916,-167.60091912,0.00016438,2]
[351235240,1738464640926,-500.0,0.00016438,2]
[351235241,1738464640935,-500.0,0.00016438,2]
[351235242,1738464640944,-506.57787356,0.00016438,2]
[351235243,1738464640954,-500.0,0.00016438,2]
[351235244,1738464640964,-500.0,0.00016438,2]
[351235245,1738464640974,-500.0,0.00016438,2]
[351235246,1738464640983,-500.0,0.00016438,2]
[351235247,1738464640992,-500.0,0.00016438,2]
[351235248,1738464641002,-500.0,0.00016438,2]
[351235249,1738464641014,-501.39544041,0.00016438,2]
[351235250,1738464641023,-500.0,0.00016438,2]
[351235251,1738464641033,-501.36750273,0.00016438,2]
[351235252,1738464641043,-500.0,0.00016438,2]
[351235253,1738464641054,-501.2774471,0.00016438,2]
[351235254,1738464641063,-500.0,0.00016438,2]
[351235255,1738464641072,-500.0,0.00016438,2]
[351235256,1738464641082,-500.0,0.00016438,2]
[351235257,1738464641093,-502.28224242,0.00016438,2]
[351235258,1738464641102,-500.0,0.00016438,2]
[351235259,1738464641111,-504.58516785,0.00016438,2]
[351235260,1738464641121,-500.0,0.00016438,2]
[351235261,1738464641129,-500.0,0.00016438,2]
[351235262,1738464641142,-500.65919472,0.00016438,2]
[351235263,1738464641150,-500.0,0.00016438,2]
[351235264,1738464641159,-500.0,0.00016438,2]
[351235265,1738464641168,-501.92399289,0.00016438,2]
[351235266,1738464641179,-502.87473744,0.00016438,2]
[351235267,1738464641188,-500.0,0.00016438,2]
[351235268,1738464641198,-500.0,0.00016438,2]
[351235269,1738464641208,-500.0,0.00016438,2]
[351235270,1738464641217,-503.23678278,0.00016438,2]
[351235271,1738464641310,-500.0,0.00016438,2]
[351235272,1738464641320,-500.0,0.00016438,2]
[351235273,1738464641330,-500.0,0.00016438,2]
[351235274,1738464641340,-500.0,0.00016438,2]
[351235275,1738464641349,-502.5526681,0.00016438,2]
[351235276,1738464641358,-500.0,0.00016438,2]
[351235277,1738464641368,-500.0,0.00016438,2]
[351235278,1738464641377,-500.0,0.00016438,2]
[351235279,1738464641391,-500.0,0.00016438,2]
[351235280,1738464641401,-500.0,0.00016438,2]
[351235281,1738464641411,-500.0,0.00016438,2]
[351235282,1738464641420,-507.64618562,0.00016438,2]
[351235283,1738464641430,-500.0,0.00016438,2]
[351235284,1738464641440,-500.0,0.00016438,2]
[351235285,1738464641450,-500.0,0.00016438,2]
[351235286,1738464641460,-500.0,0.00016438,2]
[351235287,1738464641469,-302.61067248,0.00016438,2]
[351235288,1738464641479,-501.43006752,0.00016438,2]
[351235289,1738464641489,-500.0,0.00016438,2]
[351235290,1738464641499,-500.0,0.00016438,2]
[351235291,1738464641509,-500.0,0.00016438,2]
[351235292,1738464641519,-503.73696828,0.00016438,2]
[351235293,1738464641528,-500.0,0.00016438,2]
[351235294,1738464641538,-511.84601996,0.00016438,2]
[351235295,1738464641547,-500.0,0.00016438,2]
[351235296,1738464641557,-500.0,0.00016438,2]
[351235297,1738464641567,-508.19728026,0.00016438,2]
[351235298,1738464641576,-3713.4,0.00016438,2]
[351235299,1738464641586,-691.74,0.00016438,2]
[351235300,1738464641595,-691.74,0.00016438,2]
[351235301,1738464641605,-691.74,0.00016438,2]
[351235302,1738464641615,-502.8071899,0.00016438,2]
[351235303,1738464641624,-691.74,0.00016438,2]
[351235304,1738464641636,-500.0,0.00016438,2]
[351235305,1738464641646,-500.0,0.00016438,2]
[351235306,1738464641656,-691.74,0.00016438,2]
[351235307,1738464641665,-691.74,0.00016438,2]
[351235308,1738464641675,-500.0,0.00016438,2]
[351235309,1738464641685,-213.39786533,0.00016438,2]
[351235310,1738464641694,-691.74,0.00016438,2]
[351235311,1738464641704,-691.74,0.00016438,2]
[351235312,1738464641714,-500.0,0.00016438,2]
[351235313,1738464641723,-691.74,0.00016438,2]
[351235314,1738464641733,-691.74,0.00016438,2]
[351235315,1738464641743,-500.0,0.00016438,2]
[351235316,1738464641752,-2207.72,0.00016438,2]
[351235317,1738464641762,-691.74,0.00016438,2]
[351235318,1738464641771,-691.74,0.00016438,2]
[351235319,1738464641780,-691.74,0.00016438,2]
[351235320,1738464641789,-691.74,0.00016438,2]
[351235321,1738464641799,-500.0,0.00016438,2]
[351235322,1738464641809,-500.0,0.00016438,2]
[351235323,1738464641819,-691.74,0.00016438,2]
[351235324,1738464641828,-500.0,0.00016438,2]
[351235325,1738464641837,-500.0,0.00016438,2]
[351235326,1738464641846,-500.0,0.00016438,2]
[351235327,1738464641855,-500.0,0.00016438,2]
[351235328,1738464641865,-500.0,0.00016438,2]
[351235329,1738464641874,-500.0,0.00016438,2]
[351235330,1738464641883,-2112.01,0.00016438,2]
[351235331,1738464641894,-500.0,0.00016438,2]
[351235332,1738464641903,-2112.01,0.00016438,2]
[351235333,1738464641912,-500.0,0.00016438,2]
[351235334,1738464641921,-2112.01,0.00016438,2]
[351235335,1738464641931,-500.0,0.00016438,2]
[351235336,1738464641940,-2112.01,0.00016438,2]
[351235337,1738464641950,-2112.01,0.00016438,2]
[351235338,1738464641959,-500.0,0.00016438,2]
[351235339,1738464641969,-500.0,0.00016438,2]
[351235340,1738464641978,-1650.26,0.00016438,2]
[351235341,1738464641987,-2112.01,0.00016438,2]
[351235342,1738464641996,-2112.01,0.00016438,2]
[351235343,1738464642006,-500.0,0.00016438,2]
[351235344,1738464642019,-2112.01,0.00016438,2]
[351235345,1738464642028,-2112.01,0.00016438,2]
[351235346,1738464642038,-2112.01,0.00016438,2]
[351235347,1738464642047,-502.34648811,0.00016438,2]
[351235348,1738464642058,-2112.01,0.00016438,2]
[351235349,1738464642068,-2112.01,0.00016438,2]
[351235350,1738464642078,-500.0,0.00016438,2]
[351235351,1738464642088,-500.0,0.00016438,2]
[351235352,1738464642098,-224.40909316,0.00016438,2]
[351235353,1738464642108,-500.0,0.00016438,2]
[351235354,1738464642118,-500.0,0.00016438,2]
[351235355,1738464642127,-500.0,0.00016438,2]
[351235356,1738464642139,-500.0,0.00016438,2]
[351235357,1738464642148,-650.11,0.00016438,2]
[351235358,1738464642158,-500.0,0.00016438,2]
[351235359,1738464642167,-503.12840788,0.00016438,2]
[351235360,1738464642177,-512.2123169,0.00016438,2]
[351235361,1738464642186,-500.0,0.00016438,2]
[351235362,1738464642195,-500.0,0.00016438,2]
[351235363,1738464642205,-500.0,0.00016438,2]
[351235364,1738464642215,-500.0,0.00016438,2]
[351235365,1738464642225,-500.0,0.00016438,2]
[351235366,1738464642234,-500.0,0.00016438,2]
[351235367,1738464642243,-500.0,0.00016438,2]
[351235368,1738464642253,-502.27707021,0.00016438,2]
[351235369,1738464642263,-502.19146056,0.00016438,2]
[351235370,1738464642273,-496.27072835,0.00016438,2]
[351235371,1738464642282,-539.23,0.00016438,2]
[351235372,1738464642292,-500.0,0.00016438,2]
[351235373,1738464642301,-501.9147924,0.00016438,2]
[351235374,1738464642311,-500.0,0.00016438,2]
[351235375,1738464642320,-500.0,0.00016438,2]
[351235376,1738464642331,-450.29961564,0.00016438,2]
[351235377,1738464642340,-502.41721277,0.00016438,2]
[351235378,1738464642350,-500.0,0.00016438,2]
[351235379,1738464642359,-500.0,0.00016438,2]
[351235380,1738464642368,-500.0,0.00016438,2]
[351235381,1738464642378,-500.0,0.00016438,2]
[351235382,1738464642389,-500.0,0.00016438,2]
[351235383,1738464642398,-648.43788959,0.00016438,2]
[351235384,1738464642408,-500.0,0.00016438,2]
[351235385,1738464642417,-500.0,0.00016438,2]
[351235386,1738464642427,-453.28896364,0.00016438,2]
[351235387,1738464642436,-500.0,0.00016438,2]
[351235388,1738464642445,-500.0,0.00016438,2]
[351235389,1738464642455,-501.70731003,0.00016438,2]
[351235390,1738464642465,-500.85742421,0.00016438,2]
[351235391,1738464642474,-500.0,0.00016438,2]
[351235392,1738464642483,-583.06091011,0.00016438,2]
[351235393,1738464642493,-500.0,0.00016438,2]
[351235394,1738464642501,-506.15609148,0.00016438,2]
[351235395,1738464642512,-500.0,0.00016438,2]
[351235396,1738464642521,-500.0,0.00016438,2]
[351235397,1738464642530,-500.0,0.00016438,2]
[351235398,1738464642540,-500.0,0.00016438,2]
[351235399,1738464642549,-500.0,0.00016438,2]
[351235400,1738464642559,-500.0,0.00016438,2]
[351235401,1738464642568,-500.0,0.00016438,2]
[351235402,1738464642577,-500.0,0.00016438,2]
[351235403,1738464642587,-500.0,0.00016438,2]
[351235404,1738464642596,-504.08587047,0.00016438,2]
[351235405,1738464642605,-500.0,0.00016438,2]
[351235406,1738464642614,-500.0,0.00016438,2]
[351235407,1738464642624,-502.72346331,0.00016438,2]
[351235408,1738464642633,-503.5967691,0.00016438,2]
[351235409,1738464642643,-501.23925094,0.00016438,2]
[351235410,1738464642652,-501.87035438,0.00016438,2]
[351235411,1738464642661,-500.0,0.00016438,2]
[351235412,1738464642671,-500.0,0.00016438,2]
[351235413,1738464642680,-500.0,0.00016438,2]
[351235414,1738464642689,-500.0,0.00016438,2]
[351235415,1738464642699,-502.10503699,0.00016438,2]
[351235416,1738464642708,-500.0,0.00016438,2]
[351235417,1738464642717,-500.0,0.00016438,2]
[351235418,1738464642726,-500.0,0.00016438,2]
[351235419,1738464642735,-500.0,0.00016438,2]
[351235420,1738464642745,-500.0,0.00016438,2]
[351235422,1738464642754,-500.0,0.00016438,2]
[351235424,1738464642763,-500.0,0.00016438,2]
[351235425,1738464642772,-500.63130117,0.00016438,2]
[351235426,1738464642781,-200.0,0.00016438,2]